Cogmind - Beta 14 @@@ ROGUE MODE // 2024.08.18 @ 17:59:45 Player: THN-L0C Result: Self-destructed Performance ------------- Evolutions (2) 1000 Regions Visited (8) 1600 Robots Destroyed (45) 225 Value Destroyed (1363) 1363 Prototype IDs (34) 680 Alien Tech Used (0) 0 Bonus (441) 441 TOTAL SCORE: 5309 Bonus ------- Follower Combat Kills 141 Aligned with FarCom 300 Cogmind --------- Core Integrity 46/550 Matter 2/300 Energy 100/100 System Corruption 13% Temperature Cool (12) Movement Core (100) Ox1 Location -8/Scraptown Parts ------- > --- POWER (1) -------- (None) > --- PROPULSION (3) --- (None) > --- UTILITY (4) ------ Scrap Suit Launcher Guidance Computer > --- WEAPON (3) ------- (None) > --- INVENTORY (5) ---- Improved Deuterium Engine Superbattery (1500) Improved Propulsion Shielding Precision Rocket Launcher Katana Peak State ------------ > --- POWER ------------ Light Deuterium Engine > --- PROPULSION ------- Armored Treads Armored Treads Armored Treads > --- UTILITY ---------- Large Storage Unit Launcher Guidance Computer Hardened Heavy Armor Plating > --- WEAPON ----------- Heavy EM Shotgun Assault Cannon Precision Rocket Launcher > --- INVENTORY -------- Deuterium Engine Light Nuclear Core Cryofiber Web Improved Heat Sink Superbattery Energy Filter Particle Charger Improved Propulsion Shielding Hardlight Generator Drone Bay Improved Datajack Katana [Rating: 42] Favorites ----------- Power Light Nuclear Core Engine Light Deuterium Engine Power Core Light Nuclear Core Propulsion Armored Treads Treads Armored Treads Wheel Wheel Utility Large Storage Unit Device Improved Heat Sink Storage Large Storage Unit Processor Advanced Targeting Computer Hackware System Shield Protection Core Shielding Weapon Katana Energy Gun Heavy EM Shotgun Energy Cannon Advanced Beam Cannon Ballistic Gun Shotgun Ballistic Cannon Assault Cannon Launcher Precision Rocket Launcher Special Weapon Mining Laser Slashing Weapon Katana Special Melee Weapon Improved Datajack Build | -11 -10 -10 -10 -9 -8 -8 -8 -8 ------- Run | Yrd Mat Min Exi Min Mat Sto Rec Scr Slots Evolved 4 | . . . . . 4 . . . Power . | . . . . . . . . . Propulsion 1 | . . . . . 1 . . . Utility 2 | . . . . . 2 . . . Weapon 1 | . . . . . 1 . . . Parts Attached 79 | 6 5 . . 15 20 13 2 18 Power 9 | 1 1 . . 1 1 3 . 2 Engine 7 | 1 1 . . 1 . 2 . 2 Core 2 | . . . . . 1 1 . . Reactor . | . . . . . . . . . Propulsion 17 | 2 . . . 2 5 2 . 6 Treads 11 | 2 . . . . 3 2 . 4 Leg . | . . . . . . . . . Wheel 6 | . . . . 2 2 . . 2 Hover . | . . . . . . . . . Flight . | . . . . . . . . . Utility 16 | 1 2 . . 2 5 1 . 5 Device 5 | . 1 . . . 2 . . 2 Storage 2 | 1 1 . . . . . . . Processor 4 | . . . . 1 2 . . 1 Hackware 2 | . . . . . 1 1 . . Protection 3 | . . . . 1 . . . 2 Artifact . | . . . . . . . . . Weapon 37 | 2 2 . . 10 9 7 2 5 Energy Gun 19 | 2 . . . 4 7 5 . 1 Energy Cannon 1 | . . . . . . 1 . . Ballistic Gun 8 | . 2 . . 6 . . . . Ballistic Cannon 1 | . . . . . . 1 . . Launcher 3 | . . . . . . . . 3 Special Weapon 1 | . . . . . 1 . . . Impact Weapon . | . . . . . . . . . Slashing Weapon 3 | . . . . . 1 . 1 1 Piercing Weapon . | . . . . . . . . . Special Melee Weapon 1 | . . . . . . . 1 . Unidentified Prototypes 6 | . . . . . 1 4 . 1 Corrupted Parts 1 | . . . . . . . . 1 System Corruption 1 | . . . . . . . . 1 Parts Lost 17 | . 1 . . 6 . 1 . 9 Power 3 | . . . . 1 . . . 2 Propulsion 6 | . . . . 2 . . . 4 Utility 3 | . . . . 1 . . . 2 Weapon 5 | . 1 . . 2 . 1 . 1 Highest Loss Streak 5 | . 1 . . 4 . 1 . 5 To Critical Strikes 1 | . . . . 1 . . . . Average Slot Usage (%) 93 | . 94 100 100 71 99 99 100 74 Engine 7 | . 14 14 14 9 3 1 9 8 Core 2 | . . . . . 5 7 . . Treads 20 | . 28 28 28 4 7 27 27 18 Wheel 4 | . . . . 6 19 . . 2 Device 9 | . 12 14 14 3 9 9 9 7 Storage 10 | . 14 14 14 14 9 9 9 7 Processor 5 | . . . . 9 9 8 . 6 Hackware 7 | . . . . . 5 9 18 7 Protection 1 | . . . . . 3 . . 3 Energy Gun 9 | . 19 . . 3 11 12 9 1 Ballistic Gun 5 | . 5 28 28 19 . . . . Ballistic Cannon 3 | . . . . . . 4 9 7 Special Weapon 1 | . . . . . 7 1 . . Slashing Weapon 5 | . . . . . 8 9 8 2 Peak Build Rating 42 | 6 12 12 13 13 35 38 37 42 Average Rating 25 | 4 7 12 12 9 24 37 37 30 On Entrance 18 | . 6 12 12 13 13 35 37 37 Naked Turns . | . . . . . . . . . Heaviest Build 66 | 14 37 37 37 37 41 39 37 66 Greatest Support 60 | 40 40 40 40 40 60 60 60 60 Greatest Overweight (x) 11 | . . . . 11 1 1 . 5 Average Overweight (x) . | . . . . 2 . . . . Largest Inventory Capacity 15 | 8 15 15 15 15 15 15 15 15 Average Capacity 14 | 7 12 15 15 15 15 15 15 12 Most Carried 15 | . 15 15 15 15 15 15 15 15 Average Carried 13 | . 6 15 14 13 13 14 15 11 Final Capacity 15 | 8 15 15 15 15 15 15 15 5 Final Carried 15 | . 15 15 15 15 15 15 15 5 Class Distribution -------------------- 59% | Mutant 13% | Commander-Mutant 11% | Scavenger-Mutant 10% | Hacker-Mutant Dominant Class ---------------- Mutant | -10/Materials Mutant | -10/Mines Mutant | -10/Exiles Mutant | -9/Mines Scavenger-Mutant | -8/Materials Mutant | -8/Storage Hacker-Mutant | -8/Recycling Commander-Mutant | -8/Scraptown Resources | -11 -10 -10 -10 -9 -8 -8 -8 -8 ----------- Run | Yrd Mat Min Exi Min Mat Sto Rec Scr Matter Collected 1642 | 165 310 38 . 413 200 120 117 279 Remotely . | . . . . . . . . . Salvage Created 2122 | . 248 38 . 174 60 387 373 842 Parts 114 | . 22 4 . . 1 27 17 43 Haulers Intercepted 3 | . . . . . . 3 . . Recyclers Shooed . | . . . . . . . . . Parts Field Recycled . | . . . . . . . . . Retrieved Matter . | . . . . . . . . . Parts Self-Destructed . | . . . . . . . . . Prevented . | . . . . . . . . . Kills | -11 -10 -10 -10 -9 -8 -8 -8 -8 ------- Run | Yrd Mat Min Exi Min Mat Sto Rec Scr Combat Hostiles Destroyed 51 | . 7 3 . 15 . 5 3 18 Melee 2 | . . . . . . . . 2 Guns 28 | . 7 3 . 15 . 3 . . Cannons 3 | . . . . . . . 3 . AOE 16 | . . . . . . . . 16 Classes Destroyed 18 | . 2 . . 1 1 5 1 8 Worker 1 | . . . . . . 1 . . Hauler 3 | . . . . . . 3 . . Recycler 4 | . . . . . 1 . 3 . Mechanic 1 | . . . . . . 1 . . Swarmer 8 | . 3 3 . . . 2 . . Grunt 5 | . 4 . . . . 1 . . Sentry 2 | . . . . . . 1 1 . Hunter 1 | . . . . . . 1 . . Programmer 2 | . . . . . . . 2 . Bolteater 2 | . . . . . . . . 2 Federalist 3 | . . . . . . . . 3 Explorer 2 | . . . . . . . . 2 Guru 1 | . . . . . . . . 1 Scientist 1 | . . . . . . . . 1 Scrapper 6 | . . . . . . . . 6 Elite 3 | . . . . . . . . 3 Tinkerer 1 | . . . . . . . . 1 Assembled 15 | . . . . 15 . . . . Thug 1 | . . . . . . . . 1 Best Kill Streak 7 | . 3 3 . 6 1 2 2 7 Combat Bots Only 6 | . 3 3 . 6 . 2 2 6 Max Kills in Single Turn 4 | . 1 1 . 2 1 2 2 4 Gunslinging . | . . . . . . . . . Exploded 4 | . . . . . . . . 4 Melee 1 | . . . . . . . . 1 Uniques/NPCs Destroyed . | . . . . . . . . . Combat | -11 -10 -10 -10 -9 -8 -8 -8 -8 -------- Run | Yrd Mat Min Exi Min Mat Sto Rec Scr Hostile Shots Fired 334 | . 32 30 . 83 4 41 9 135 Missed 101 | . 15 13 . 25 1 9 3 35 Damage Taken 4002 | . 164 135 . 1002 46 456 115 2084 Core 725 | . 40 16 . 165 . 31 9 464 Absorbed by Shields 13 | . . . . . . . 7 6 Core Remaining (%) 55 | 100 . . . 11 . . . . Volleys Fired 139 | . 17 6 . 46 21 16 9 24 Largest 3 | . 2 2 . 2 2 2 2 3 Hottest 155 | . 80 46 . 112 155 155 94 137 Shots Fired 206 | . 32 12 . 69 22 22 11 38 Gun 140 | . 32 12 . 69 2 21 2 2 Cannon 22 | . . . . . . . 9 13 Launcher 23 | . . . . . . . . 23 Special 21 | . . . . . 20 1 . . Kinetic 96 | . 4 12 . 58 . . 9 13 Thermal 32 | . . . . 11 20 1 . . Explosive 23 | . . . . . . . . 23 Electromagnetic 55 | . 28 . . . 2 21 2 2 Robot Hit Streak 14 | . 7 3 . 5 1 6 6 14 Robot Miss Streak 6 | . 4 6 . 5 1 2 1 3 Penetration Max . | . . . . . . . . . Secondary Targets 1 | . . . . 1 . . . . Max Gunslinging Chain 1 | . . . . 1 . . . . Shots Hit Robots 162 | . 21 7 . 44 2 23 34 31 Core Hits 100 | . 12 3 . 33 1 8 7 36 Critical Kills . | . . . . . . . . . Critical Parts Destroyed . | . . . . . . . . . Critical Strikes 3 | . . . . 1 . 1 . 1 Burn 1 | . . . . 1 . . . . Blast 1 | . . . . . . . . 1 Corrupt 1 | . . . . . . 1 . . Melee Attacks 71 | . . . . . 13 25 25 8 Impact . | . . . . . . . . . Slashing 48 | . . . . . 13 25 2 8 Piercing . | . . . . . . . . . Sneak Attacks 31 | . . . . . . 6 25 . Combat Hostiles 17 | . . . . . . . 17 . Follow-up Attacks . | . . . . . . . . . Damage Inflicted 4301 | . 257 90 . 646 41 763 526 1978 Guns 1400 | . 257 90 . 646 41 285 51 30 Cannons 408 | . . . . . . . 250 158 Explosions 1770 | . . . . . . . 105 1665 Melee 723 | . . . . . . 478 120 125 Ramming . | . . . . . . . . . Kinetic 1061 | . 19 90 . 544 . . 250 158 Thermal 251 | . . . . 102 . . 105 44 Explosive 1621 | . . . . . . . . 1621 Electromagnetic 645 | . 238 . . . 41 285 51 30 Impact . | . . . . . . . . . Slashing 723 | . . . . . . 478 120 125 Piercing . | . . . . . . . . . Highest Corruption 13 | . . . . 4 . 2 3 13 Average Corruption 4 | . . . . 4 . 2 2 6 Corruption Purged . | . . . . . . . . . Corruption Blocked . | . . . . . . . . . Effects 41 | . . . . 4 . 1 20 16 Message Errors 3 | . . . . . . . 1 2 Matter Fused 12 | . . . . 1 . . 7 4 Heat Flow Errors 7 | . . . . 1 . . 3 3 Energy Discharges 5 | . . . . . . . 4 1 Parts Rejected 1 | . . . . . . . . 1 Data Loss (minor) 6 | . . . . 1 . 1 3 1 Data Loss (major) 3 | . . . . 1 . . 1 1 Misfires 2 | . . . . . . . 1 1 Misdirections 1 | . . . . . . . . 1 Weapon Failures 1 | . . . . . . . . 1 Overload Shots . | . . . . . . . . . Overflow Damage 156 | . . . . . . 40 52 64 Projectiles 2 | . . . . . . . 2 . Explosions 38 | . . . . . . . . 38 Melee 116 | . . . . . . 40 50 26 Knockbacks 2 | . . . . . . . 1 1 Impact . | . . . . . . . . . Kinetic 2 | . . . . . . . 1 1 Secondary . | . . . . . . . . . Self-Inflicted Damage 19 | . . . . . . . . 19 Shots 1 | . . . . . . . . 1 Rammed . | . . . . . . . . . Targets Rammed . | . . . . . . . . . Kicked . | . . . . . . . . . Crushed . | . . . . . . . . . Highest Temperature 276 | . 114 . . 264 . 13 186 276 Average Temperature 93 | . 41 . . 137 . 6 78 97 Received Heat Transfer 937 | . 63 . . 180 27 153 68 446 Siege Activations . | . . . . . . . . . Robots Corrupted 2 | . . . . . . 2 . . Combat Hostiles 2 | . . . . . . 2 . . Parts Fried 8 | . 1 . . . 1 5 1 . Impact Corruptions . | . . . . . . . . . Robots Melted . | . . . . . . . . . Combat Hostiles . | . . . . . . . . . Parts Melted 2 | . . . . . . . . 2 Heat Transferred 520 | . . . . 333 . . 150 37 Parts Sabotaged . | . . . . . . . . . Parts Stolen 1 | . . . . . . . . 1 Parts Stripped . | . . . . . . . . . Power Chain Reactions 2 | . . . . . . . 1 1 Alert | -11 -10 -10 -10 -9 -8 -8 -8 -8 ------- Run | Yrd Mat Min Exi Min Mat Sto Rec Scr Peak Influence 177 | . 177 101 . 37 69 107 74 . Initial 31 | . . 31 . . . . 5 . Average 28 | . 66 95 . 6 21 24 17 . Maximum Alert Level . | . . . . . . . . . Low Security (%) 100 | 100 100 100 . 100 100 100 100 . Level 1 . | . . . . . . . . . Level 2 . | . . . . . . . . . Level 3 . | . . . . . . . . . Level 4 . | . . . . . . . . . Level 5 . | . . . . . . . . . High Security . | . . . . . . . . . Max Security . | . . . . . . . . . Squads Dispatched 8 | . 1 . . . 3 4 . . Investigation 6 | . 1 . . . 3 2 . . Extermination . | . . . . . . . . . Reinforcement 1 | . . . . . . 1 . . Assault . | . . . . . . . . . Garrison 1 | . . . . . . 1 . . Intercept . | . . . . . . . . . Searches Triggered . | . . . . . . . . . Construction Impeded . | . . . . . . . . . Haulers Reinforced . | . . . . . . . . . Active Scanning Responses . | . . . . . . . . . Cargo Convoy Interrupts . | . . . . . . . . . Stealth | -11 -10 -10 -10 -9 -8 -8 -8 -8 --------- Run | Yrd Mat Min Exi Min Mat Sto Rec Scr Distress Signals 6 | . 2 . . . 2 2 . . Communications Jammed . | . . . . . . . . . Distress Signals . | . . . . . . . . . Times Spotted 95 | . 14 3 . 21 6 22 5 24 Peak Tracking Total 6 | . 4 3 . 4 5 5 3 6 Tactical Retreats 7 | . 2 . . 3 2 . . . Traps | -11 -10 -10 -10 -9 -8 -8 -8 -8 ------- Run | Yrd Mat Min Exi Min Mat Sto Rec Scr Traps Triggered 3 | . . . . . 1 2 . . Indirectly . | . . . . . . . . . Trap Hack Attempts . | . . . . . . . . . Triggered . | . . . . . . . . . Disarmed . | . . . . . . . . . Reprogrammed . | . . . . . . . . . Reused . | . . . . . . . . . Traps Extracted . | . . . . . . . . . Installed . | . . . . . . . . . Triggered . | . . . . . . . . . Machines | -11 -10 -10 -10 -9 -8 -8 -8 -8 ---------- Run | Yrd Mat Min Exi Min Mat Sto Rec Scr Machines Disabled 17 | . 1 . . . . 2 . 14 Max in Single Turn 2 | . 1 . . . . 1 . 2 Garrison Access 1 | . . . . . . 1 . . Machines Repaired . | . . . . . . . . . Machines Dismantled . | . . . . . . . . . Machines Sabotaged . | . . . . . . . . . Overloaded Fab Kills . | . . . . . . . . . Hacking | -11 -10 -10 -10 -9 -8 -8 -8 -8 --------- Run | Yrd Mat Min Exi Min Mat Sto Rec Scr Machines Accessed 35 | . 5 . 1 . 10 9 10 . Terminals 27 | . 5 . . . 8 8 6 . Fabricators . | . . . . . . . . . Repair Stations . | . . . . . . . . . Recycling Units 6 | . . . . . 2 . 4 . Scanalyzers . | . . . . . . . . . Garrison Access 1 | . . . . . . 1 . . Total Hacks 126 | . 17 . 1 . 38 33 37 . Successful 67 | . 6 . 1 . 16 16 28 . Failed 59 | . 11 . . . 22 17 9 . Catastrophic 8 | . 1 . . . 5 1 1 . Database Lockouts . | . . . . . . . . . Manual 83 | . 17 . 1 . 36 13 16 . Terminals 113 | . 17 . . . 33 32 31 . Fabricators . | . . . . . . . . . Repair Stations . | . . . . . . . . . Recycling Units 11 | . . . . . 5 . 6 . Scanalyzers . | . . . . . . . . . Garrison Access 1 | . . . . . . 1 . . Terminal Hacks 37 | . 4 . 1 . 5 11 16 . Record 5 | . . . . . . . 5 . Part Schematic 2 | . . . . . . 1 1 . Robot Analysis 4 | . 1 . . . 2 . 1 . Prototype ID Bank 3 | . . . . . . 2 1 . Open Door 3 | . . . . . . 3 . . Branch Access Points 3 | . 1 . . . 1 . 1 . Terminal Index 5 | . 2 . . . 1 1 1 . Alert Level 2 | . . . . . 1 . 1 . Unreport Threat 1 | . . . . . . 1 . . Locate Traps 1 | . . . . . . 1 . . Dispatch Records 1 | . . . . . . . 1 . Maintenance Status 1 | . . . . . . . 1 . Zone Layout 5 | . . . . . . 2 3 . Derelict Proto ID Bank 1 | . . . 1 . . . . . Fabricator Hacks . | . . . . . . . . . Repair Station Hacks . | . . . . . . . . . Recycling Unit Hacks 7 | . . . . . 2 . 5 . Report Inventory 5 | . . . . . 1 . 4 . Retrieve Components 2 | . . . . . 1 . 1 . Scanalyzer . | . . . . . . . . . Garrison Access Hacks 1 | . . . . . . 1 . . Seal Access 1 | . . . . . . 1 . . Unauthorized Hacks 22 | . 2 . . . 9 4 7 . Terminals 19 | . 2 . . . 7 4 6 . Botnet 19 | . 2 . . . 7 4 6 . Fabricators . | . . . . . . . . . Repair Stations . | . . . . . . . . . Recycling Units 3 | . . . . . 2 . 1 . Monitor 2 | . . . . . 1 . 1 . Reject 1 | . . . . . 1 . . . Scanalyzers . | . . . . . . . . . Garrison Access . | . . . . . . . . . Data Cores Recovered . | . . . . . . . . . Used . | . . . . . . . . . Hacking Detections 23 | . 5 . . . 7 5 6 . Full Trace Events 8 | . 1 . . . 3 2 2 . Feedback Events 1 | . . . . . . . 1 . Corruption 1 | . . . . . . . 1 . Feedback Blocked . | . . . . . . . . . Robot Schematics Acquired . | . . . . . . . . . Robots Built . | . . . . . . . . . Authchips . | . . . . . . . . . Time . | . . . . . . . . . Total Robot Build Rating . | . . . . . . . . . Part Schematics Acquired 2 | . . . . . . 1 1 . Parts Built . | . . . . . . . . . Authchips . | . . . . . . . . . Time . | . . . . . . . . . Total Part Build Rating . | . . . . . . . . . Parts Repaired . | . . . . . . . . . Time . | . . . . . . . . . Parts Recycled . | . . . . . . . . . Recycled Matter . | . . . . . . . . . Retrieved Matter . | . . . . . . . . . Retrieved Components 11 | . . . . . 9 . 2 . Parts Scanalyzed . | . . . . . . . . . Part Schematics Acquired . | . . . . . . . . . Parts Damaged . | . . . . . . . . . Bothacking | -11 -10 -10 -10 -9 -8 -8 -8 -8 ------------ Run | Yrd Mat Min Exi Min Mat Sto Rec Scr Used RIF Installer . | . . . . . . . . . Robots Hacked 2 | . . . . . . . 2 . Non-combat 2 | . . . . . . . 2 . Combat . | . . . . . . . . . Robot Hacks Applied 2 | . . . . . . . 2 . parse_system 2 | . . . . . . . 2 . Relay Couplers Released . | . . . . . . . . . Fabnet Peak Effective % . | . . . . . . . . . Robots Rewired 5 | . . . . . . . 5 . Allies Hacked . | . . . . . . . . . Hacks Repelled . | . . . . . . . . . Allies | -11 -10 -10 -10 -9 -8 -8 -8 -8 -------- Run | Yrd Mat Min Exi Min Mat Sto Rec Scr Total Allies 8 | . . 3 . . . . 5 . Largest Group 5 | . . 3 3 3 . . 5 5 Highest-Rated Group 99 | . . 40 40 40 . . 99 99 Highest-Rated Ally 34 | . . 16 16 16 . . 34 34 Total Orders . | . . . . . . . . . Ally Attacks 20 | . . . . 16 . . . 4 Total Damage 259 | . . . . 159 . . . 100 Kills 5 | . . . . 4 . . . 1 Allies Corrupted . | . . . . . . . . . Allies Melted . | . . . . . . . . . Intel | -11 -10 -10 -10 -9 -8 -8 -8 -8 ------- Run | Yrd Mat Min Exi Min Mat Sto Rec Scr Robot Analysis Total 4 | . 1 . . . 2 . 1 . Derelict Logs Recovered 2 | . . . . 2 . . . . Drone Launches . | . . . . . . . . . Drone Recoveries . | . . . . . . . . . Exploration | -11 -10 -10 -10 -9 -8 -8 -8 -8 ------------- Run | Yrd Mat Min Exi Min Mat Sto Rec Scr Turns Passed 6676 | 59 741 279 372 689 1260 1463 1122 691 Spaces Moved 3680 | 37 398 153 231 265 891 698 625 382 Core 112 | 7 . . . 66 . . . 39 Treads 2610 | 30 398 153 231 41 193 698 625 241 Legs . | . . . . . . . . . Wheels 958 | . . . . 158 698 . . 102 Hover . | . . . . . . . . . Flight . | . . . . . . . . . Fastest Speed 50 | 50 160 160 160 95 95 170 170 80 Average Speed 153 | 139 160 160 160 199 111 170 170 150 Slowest Speed 600 | 160 160 160 160 600 250 250 170 330 Overloaded Moves . | . . . . . . . . . Propulsion Burnouts . | . . . . . . . . . Robots Hopped . | . . . . . . . . . Cave-ins Triggered 1 | . . . . . . . . 1 Exploration Rate (%) 53 | 3 66 33 62 41 61 87 98 33 Regions Visited 8 Branch Regions 6 Pre-discovered Areas . | . . . . . . . . . Known Exits Taken 2 | . 1 . . . 1 . . . Unknown Exits Taken 6 | 1 . 1 1 1 . 1 1 . Scrap Searched 3 | . . . . 1 . . . 2 Spaces Dug 33 | . . . . . 32 1 . . Terrain Destroyed 194 | . . . . . 32 1 2 159 Melee 13 | . . . . . 13 . . . Projectile 24 | . . . . . 19 1 . 4 AOE 157 | . . . . . . . 2 155 Terrain Rammed . | . . . . . . . . . Walls Destroyed . | . . . . . . . . . Machines Disabled . | . . . . . . . . . Actions | -11 -10 -10 -10 -9 -8 -8 -8 -8 --------- Run | Yrd Mat Min Exi Min Mat Sto Rec Scr Total 4389 | 42 473 175 234 351 1082 913 671 448 Wait 327 | . 31 17 2 22 100 144 11 . Move 3672 | 36 397 152 230 264 890 697 624 382 Hop . | . . . . . . . . . Pick Up 50 | . 17 . 1 4 17 9 . 2 Fast Attach 22 | 6 3 . . 2 3 3 . 5 Attach 21 | . . . . 4 7 1 . 9 Detach 12 | . 1 . . . 2 . . 9 Swap 36 | . 2 . . 9 10 9 2 4 Drop 39 | . 5 . 1 . 19 9 . 5 Fire 139 | . 17 6 . 46 21 16 9 24 Melee 71 | . . . . . 13 25 25 8 Ram . | . . . . . . . . . Kick . | . . . . . . . . . Crush . | . . . . . . . . . Escape Stasis . | . . . . . . . . . Rewire . | . . . . . . . . . Trap . | . . . . . . . . . Miscellaneous . | . . . . . . . . . Route ------- -11/Scrapyard -10/Materials (discovered 2 exits: [*Mat] / *Min) -10/Mines -10/Exiles -9/Mines -8/Materials (discovered 3 exits: *Fac / *Sto x2) -8/Storage (discovered 2 exits: *Fac / *Rec) -8/Recycling (discovered 2 exits: [*Fac] / [*Scr]) -8/Scraptown (discovered 1 exit: [*Fac]) History --------- Turn | Location | Event 16 | -11/Scrapyard | Discovered new exit (range 14) 60 | -11/Scrapyard | Entered Materials 303 | -10/Materials | Build established: Mutant 425 | -10/Materials | Identified exit to Mines 425 | -10/Materials | Discovered new exit (range 11) 801 | -10/Materials | Entered Mines 1015 | -10/Mines | Assisted by bots powering up and referring to "LRC-V3" 1053 | -10/Mines | Deemed a non-threat by the Exiles lab entrance 1055 | -10/Mines | Discovered new exit (range 5) 1080 | -10/Mines | Entered Exiles 1080 | -10/Exiles | Accompanied by 3 allies 1120 | -10/Exiles | Met 8R-AWN 1144 | -10/Exiles | Met EX-HEX 1202 | -10/Exiles | Met EX-BIN 1221 | -10/Exiles | Aligned with FarCom system 1223 | -10/Exiles | Given EX-Vault access code 1269 | -10/Exiles | Opened EX-Vault 1286 | -10/Exiles | Found Superbattery 1320 | -10/Exiles | Warned to stay clear of 0b10 Research branches 1336 | -10/Exiles | Exiles lab attacked by MAIN.C 1432 | -10/Exiles | Discovered new exit (range 14) 1452 | -10/Exiles | Left Exiles lab with Superbattery 1452 | -10/Exiles | Entered Mines 1452 | -9/Mines | Accompanied by 3 allies 1453 | -9/Mines | Assembled infested the area 1482 | -9/Mines | Learned location of 1 exit from Lower Caves 1508 | -9/Mines | Lost 4 allies 1573 | -9/Mines | Learned 4 Materials zone layouts 1660 | -9/Mines | Core integrity fell below 50% 1682 | -9/Mines | Lost 4 parts (1p1n1u1w) 1882 | -9/Mines | Core integrity fell below 20% 2133 | -9/Mines | Discovered new exit (range 9) 2141 | -9/Mines | Entered Materials 2141 | -8/Materials | Evolved 4 slots: Propulsion x1, Utility x2, Weapon x1 2142 | -8/Materials | Identified exit to Factory 2154 | -8/Materials | Discovered new exit (range 16) 2559 | -8/Materials | Build established: Scavenger-Mutant 2579 | -8/Materials | Met 7R-MNS 2754 | -8/Materials | Discovered new exit (range 16) 2823 | -8/Materials | Identified exit to Storage 3344 | -8/Materials | Build established: Mutant 3401 | -8/Materials | Entered Storage 3648 | -8/Storage | Met 01-MTF 3993 | -8/Storage | Garrison activated, responded to threat 4113 | -8/Storage | Discovered exit to Factory (range 16) 4841 | -8/Storage | Discovered new exit (range 7) 4864 | -8/Storage | Entered Recycling 4864 | -8/Recycling | Accompanied by 1 ally (01-MTF) 5076 | -8/Recycling | Build established: Hacker-Mutant 5524 | -8/Recycling | Discovered new exit (range 15) 5766 | -8/Recycling | Build established: Commander-Mutant 5924 | -8/Recycling | Scanned before Scraplab entrance 5958 | -8/Recycling | Entered Scraplab 5974 | -8/Recycling | Discovered new exit (range 4) 5986 | -8/Recycling | Entered Scraptown 5986 | -8/Scraptown | Accompanied by 5 allies 6274 | -8/Scraptown | Discovered new exit (range 13) 6368 | -8/Scraptown | Attacked by Scraptown defenders 6412 | -8/Scraptown | Lost 4 allies 6435 | -8/Scraptown | Crushed by falling debris 6435 | -8/Scraptown | System corruption reached 10% 6521 | -8/Scraptown | Core integrity fell below 50% 6570 | -8/Scraptown | Lost 5 parts (2n2u1w) 6624 | -8/Scraptown | Found Scrap Suit 6671 | -8/Scraptown | Core integrity fell below 20% 6677 | -8/Scraptown | Self-destructed Last Messages --------------- 06622_ Acquired 44 matter. 06623_ Deuterium Engine destroyed. 06624_ Acquired Scrap Suit. 06626_ XJ-ACT(g) destroyed. 06626_ Machine disabled. 06626_ Wheel destroyed. 06626_ Destroyed Wheel. 06626_ Penetrated by Siege Slug. 06628_ Acquired 4 matter. 06631_ Critical hit (Burn: +37). 06633_ PZ-8NJ(g) destroyed. 06633_ Machine disabled. 06634_ The unstable cave ceiling collapses. 06635_ Dropped Mak. Light Armor Plating. 06637_ Dropped Energy Filter. 06638_ ANNOUNCEMENT: HQ reinforcements inbound. Hold tight! 06638_ Dropped Drone Bay. 06670_ Penetrated by Siege Slug. 06670_ Knocked back. 06675_ Machine disabled. Map ----- +----------------------------------------------------+ | ?#" " " ???????????????? | | ?#" " " ! " ????????????????? | | ?#" " !! " #???????????????????? | | ?#" "#????????????????????? | | ?#" " " "#????????????????????? | | ?#"" """"#????????????????????? | | ?#""" "" # ######?????????????#??????? | | ?#"" "" #######??#####?????? #??????? | | ?#""" "" """""""#?#"""#????? #??????? | | ?#"""""" """ " "#?#" "#????? #??????? | | ?####### ### " """ "#?# #???? #??????? | | ???# #?# " """ "#?# ##### #??????? | | ?### ####### " """ ???# ##?????? | | ?#"" """"""" " """ ???# ! #?????? | | ?#" " " """ ???# ! ##?????? | | ?#" """"" " " """ "??##### ### ##??????? | | ?#" """"" " " """ "??????# #???#???????? | | ?#" """""" """ "####### ######??????? | | ?#" """"" " " """ "##""""" """""#??????? | | ?#" """"" " " "##"""%" " "#??????? | | ?#" " """""""##" ! "#??????? | | ?#"""""""""" #######?#""""" """""#??????? | | ?########### ##??????###### ######??????? | | ??????????# ############# #########"" ? | | ??????????# r r | | ??????????# @ j | | ??????????# ###"""" "" "######"""" """"? | | ??????????######?#""" !"""#?????? ????? | | ?????????????????#""" %""#??????? ????? | | ?????????????????#"""" /= "#???????? ???? | | ?????????????????#""""" "#?????????" ???? | | ?????????????????#"""""""""#??????????????? | | ?????????????????###########??????????????? | | | | | | | | | | | | | | | | | | | | | | | | | | | | | | | | | | | +----------------------------------------------------+ Best States ------------- Heat Dissipation 45 Energy Generation 14 Energy Capacity 280 Matter Stores 300 Matter Capacity 300 Sight Range 16 Robot Scan Range 14 Terrain Scan Density 10 Armor Coverage 600 Core Shielding 20 Evasion (%) 41 Targeting Accuracy 8 Launcher Accuracy 20 Recoil Reduction 3 Offensive Hacking 10 Defensive Hacking 10 Item Schematics ----------------- Hvy. Plasma Cannon | -8/Storage | Hacked Imp. Carbon-fiber Leg | -8/Recycling | Hacked Robot Schematics ------------------ None Fabricated ------------ Nothing Alien Tech Used ----------------- None Achievements -------------- Exterminator Challenges ------------ None Game ------ Seed MobileArmorReplicator Manual? 0 Play Time 00:56:25 Cumulative 69.0 hours Start 2024.08.18 @ 17:05:00 End 2024.08.18 @ 17:59:45 Sessions 1 Manual Loads 0 Difficulty Rogue Special Mode None Game No. 66 Rogue 66 Adventurer 0 Explorer 0 Win Type - Total 0 Types 0/0/0/0/0/0/0/0/0 Lore% 45 Gallery% 48 Achievement% 39 Wizard Run 0 Options --------- Layout 2 ASCII 0 Keyboard 1 Movement Vi Keybinds 0 Fullscreen 1 Font 32/SmallcapsGlow Map View 77x44 Zoom Use 0% Tactical HUD 1 Map Filters NONE Filters NONE Steam 1 RUN: dbc325fe-6a5e-4e1e-9c8e-87c752a06c91